[Event "Titled Tuesday Blitz January 03 Late 2023"]
[White "Fiorito, Francisco"]
[Black "Zierk, Steven"]
[WhiteFideId "180165"]
[BlackFideId "2034255"]
[WhiteElo "2305"]
[BlackElo "2488"]
[Result "1/2-1/2"]
[Round "02"]
[TimeControl "180+2"]
[Date "2023.01.03"]
[WhiteClock "0:00:10"]
[BlackClock "0:00:16"]

1. e4 {[%clk 0:03:00]}  e6 {[%clk 0:02:59]} 2. d4 {[%clk 0:03:00]}  d5 {[%clk 0:03:00]} 3. Nd2 {[%clk 0:03:01]}  c5 {[%clk 0:03:00]} 4. Ngf3 {[%clk 0:03:00]}  cxd4 {[%clk 0:02:59]} 5. Nxd4 {[%clk 0:02:59]}  Nc6 {[%clk 0:03:00]} 6. Nxc6 {[%clk 0:03:00]}  bxc6 {[%clk 0:03:00]} 7. Bd3 {[%clk 0:03:00]}  Bd6 {[%clk 0:02:52]} 8. O-O {[%clk 0:02:58]}  Qc7 {[%clk 0:02:51]} 9. Nf3 {[%clk 0:02:54]}  Ne7 {[%clk 0:02:49]} 10. c4 {[%clk 0:02:48]}  dxe4 {[%clk 0:02:48]} 11. Bxe4 {[%clk 0:02:46]}  f5 {[%clk 0:02:44]} 12. Bc2 {[%clk 0:02:46]}  c5 {[%clk 0:02:43]} 13. Re1 {[%clk 0:02:44]}  O-O {[%clk 0:02:38]} 14. Qe2 {[%clk 0:02:42]}  Nc6 {[%clk 0:02:34]} 15. Bg5 {[%clk 0:02:13]}  e5 {[%clk 0:02:30]} 16. Rad1 {[%clk 0:02:10]}  e4 {[%clk 0:02:29]} 17. Bxe4 {[%clk 0:01:51]}  fxe4 {[%clk 0:02:12]} 18. Qxe4 {[%clk 0:01:52]}  Kh8 {[%clk 0:02:00]} 19. Qd5 {[%clk 0:01:44]}  Bf4 {[%clk 0:01:56]} 20. Bxf4 {[%clk 0:01:38]}  Qxf4 {[%clk 0:01:55]} 21. Qxc6 {[%clk 0:01:38]}  Bg4 {[%clk 0:01:56]} 22. Rd3 {[%clk 0:01:33]}  Qxc4 {[%clk 0:01:53]} 23. Rde3 {[%clk 0:01:26]}  Qxa2 {[%clk 0:01:45]} 24. Ne5 {[%clk 0:01:22]}  Bh5 {[%clk 0:01:32]} 25. Nd3 {[%clk 0:00:57]}  Bg6 {[%clk 0:01:28]} 26. Ne5 {[%clk 0:00:49]}  Bh5 {[%clk 0:01:23]} 27. Nd3 {[%clk 0:00:30]}  Rac8 {[%clk 0:01:21]} 28. Qb7 {[%clk 0:00:20]}  c4 {[%clk 0:01:14]} 29. Ne5 {[%clk 0:00:20]}  Rb8 {[%clk 0:01:12]} 30. Qe7 {[%clk 0:00:14]}  Qxb2 {[%clk 0:01:11]} 31. f3 {[%clk 0:00:12]}  c3 {[%clk 0:01:06]} 32. Nd7 {[%clk 0:00:09]}  Qb7 {[%clk 0:00:45]} 33. Nxb8 {[%clk 0:00:05]}  Qxe7 {[%clk 0:00:44]} 34. Rxe7 {[%clk 0:00:06]}  Rxb8 {[%clk 0:00:44]} 35. Rxa7 {[%clk 0:00:05]}  Bg6 {[%clk 0:00:38]} 36. Rc7 {[%clk 0:00:04]}  c2 {[%clk 0:00:37]} 37. Kf2 {[%clk 0:00:04]}  h6 {[%clk 0:00:35]} 38. Rc1 {[%clk 0:00:05]}  Rb2 {[%clk 0:00:34]} 39. Ke3 {[%clk 0:00:04]}  Kh7 {[%clk 0:00:33]} 40. Kd2 {[%clk 0:00:04]}  h5 {[%clk 0:00:33]} 41. g3 {[%clk 0:00:03]}  Rb3 {[%clk 0:00:30]} 42. f4 {[%clk 0:00:03]}  h4 {[%clk 0:00:29]} 43. gxh4 {[%clk 0:00:01]}  Rh3 {[%clk 0:00:29]} 44. R1xc2 {[%clk 0:00:02]}  Rxh2+ {[%clk 0:00:29]} 45. Kc1 {[%clk 0:00:03]}  Bxc2 {[%clk 0:00:27]} 46. Rxc2 {[%clk 0:00:03]}  Rxh4 {[%clk 0:00:27]} 47. Rf2 {[%clk 0:00:04]}  Kg6 {[%clk 0:00:25]} 48. Kd2 {[%clk 0:00:05]}  Kf5 {[%clk 0:00:25]} 49. Ke3 {[%clk 0:00:05]}  Rh3+ {[%clk 0:00:26]} 50. Rf3 {[%clk 0:00:06]}  Rh1 {[%clk 0:00:16]} 51. Rg3 {[%clk 0:00:05]}  Re1+ {[%clk 0:00:16]} 52. Kf2 {[%clk 0:00:06]}  Re7 {[%clk 0:00:16]} 53. Kf3 {[%clk 0:00:06]}  Ra7 {[%clk 0:00:16]} 54. Rg5+ {[%clk 0:00:06]}  Kf6 {[%clk 0:00:16]} 55. Kg4 {[%clk 0:00:07]}  Ra1 {[%clk 0:00:15]} 56. Rf5+ {[%clk 0:00:07]}  Ke6 {[%clk 0:00:15]} 57. Re5+ {[%clk 0:00:08]}  Kf6 {[%clk 0:00:15]} 58. Rf5+ {[%clk 0:00:08]}  Ke6 {[%clk 0:00:15]} 59. Re5+ {[%clk 0:00:09]}  Kf6 {[%clk 0:00:16]} 60. Rf5+ {[%clk 0:00:10]} 1/2-1/2


[Site "https://www.chess.com"]

[Event "Titled Tuesday Blitz January 03 Late 2023"]
[White "Martinez Ramirez, Lennis"]
[Black "Baskakov, Egor"]
[WhiteFideId "3509079"]
[BlackFideId "24197866"]
[WhiteElo "2426"]
[BlackElo "2215"]
[Result "1/2-1/2"]
[Round "02"]
[TimeControl "180+2"]
[Date "2023.01.03"]
[WhiteClock "0:00:44"]
[BlackClock "0:00:44"]

1. c4 {[%clk 0:03:00]}  Nf6 {[%clk 0:02:59]} 2. d4 {[%clk 0:03:01]}  e6 {[%clk 0:02:59]} 3. Nf3 {[%clk 0:03:00]}  d5 {[%clk 0:02:59]} 4. g3 {[%clk 0:03:00]}  Be7 {[%clk 0:02:59]} 5. Bg2 {[%clk 0:03:00]}  O-O {[%clk 0:03:00]} 6. O-O {[%clk 0:03:00]}  Ne4 {[%clk 0:02:59]} 7. Qc2 {[%clk 0:02:54]}  c6 {[%clk 0:02:59]} 8. b3 {[%clk 0:02:54]}  f5 {[%clk 0:02:59]} 9. Ba3 {[%clk 0:02:53]}  Bd7 {[%clk 0:03:00]} 10. Bxe7 {[%clk 0:02:52]}  Qxe7 {[%clk 0:03:00]} 11. Ne5 {[%clk 0:02:52]}  Be8 {[%clk 0:03:01]} 12. Nd2 {[%clk 0:02:51]}  Nd7 {[%clk 0:02:59]} 13. Nd3 {[%clk 0:02:49]}  Nxd2 {[%clk 0:02:58]} 14. Qxd2 {[%clk 0:02:49]}  g5 {[%clk 0:02:59]} 15. Qe3 {[%clk 0:02:36]}  Qf6 {[%clk 0:02:52]} 16. f4 {[%clk 0:02:36]}  h6 {[%clk 0:02:50]} 17. a4 {[%clk 0:02:20]}  Bf7 {[%clk 0:02:39]} 18. a5 {[%clk 0:02:19]}  a6 {[%clk 0:02:38]} 19. Ra4 {[%clk 0:02:10]}  gxf4 {[%clk 0:02:31]} 20. gxf4 {[%clk 0:02:03]}  Kh7 {[%clk 0:02:29]} 21. Rb4 {[%clk 0:01:59]}  Rab8 {[%clk 0:02:29]} 22. Rf3 {[%clk 0:01:52]}  Qd8 {[%clk 0:02:18]} 23. Ra4 {[%clk 0:01:50]}  Qf6 {[%clk 0:02:13]} 24. c5 {[%clk 0:01:50]}  Rbc8 {[%clk 0:02:09]} 25. Rb4 {[%clk 0:01:49]}  Rc7 {[%clk 0:02:10]} 26. Rg3 {[%clk 0:01:49]}  Rg8 {[%clk 0:02:06]} 27. Ne5 {[%clk 0:01:49]}  Nxe5 {[%clk 0:02:05]} 28. Qxe5 {[%clk 0:01:48]}  Qxe5 {[%clk 0:02:04]} 29. dxe5 {[%clk 0:01:49]}  Be8 {[%clk 0:01:47]} 30. Bf3 {[%clk 0:01:47]}  Rcg7 {[%clk 0:01:35]} 31. Kf2 {[%clk 0:01:46]}  Rc7 {[%clk 0:01:34]} 32. e3 {[%clk 0:01:43]}  Rgg7 {[%clk 0:01:33]} 33. Ra4 {[%clk 0:01:43]}  Rce7 {[%clk 0:01:27]} 34. Ra1 {[%clk 0:01:42]}  Kh8 {[%clk 0:01:22]} 35. Rag1 {[%clk 0:01:42]}  Kh7 {[%clk 0:01:22]} 36. Ke2 {[%clk 0:01:41]}  Kh8 {[%clk 0:01:21]} 37. Kd3 {[%clk 0:01:42]}  Kh7 {[%clk 0:01:22]} 38. Kd4 {[%clk 0:01:42]}  Kh8 {[%clk 0:01:21]} 39. Be2 {[%clk 0:01:42]}  Kh7 {[%clk 0:01:21]} 40. b4 {[%clk 0:01:33]}  Kh8 {[%clk 0:01:21]} 41. Kd3 {[%clk 0:01:15]}  Kh7 {[%clk 0:01:20]} 42. Kd2 {[%clk 0:01:15]}  Kh8 {[%clk 0:01:21]} 43. Ke1 {[%clk 0:01:15]}  Kh7 {[%clk 0:01:21]} 44. Kf2 {[%clk 0:01:15]}  Kh8 {[%clk 0:01:20]} 45. Rxg7 {[%clk 0:01:12]}  Rxg7 {[%clk 0:01:19]} 46. Rxg7 {[%clk 0:01:12]}  Kxg7 {[%clk 0:01:20]} 47. Kg3 {[%clk 0:01:13]}  Kh7 {[%clk 0:01:06]} 48. Kh4 {[%clk 0:01:13]}  Kg7 {[%clk 0:01:06]} 49. Bd1 {[%clk 0:01:09]}  Kh8 {[%clk 0:00:59]} 50. Be2 {[%clk 0:01:08]}  Kg7 {[%clk 0:00:59]} 51. Bh5 {[%clk 0:01:09]}  Bxh5 {[%clk 0:00:51]} 52. Kxh5 {[%clk 0:01:10]}  Kh7 {[%clk 0:00:52]} 53. Kh4 {[%clk 0:01:04]}  Kg6 {[%clk 0:00:50]} 54. Kg3 {[%clk 0:01:03]}  Kh7 {[%clk 0:00:44]} 55. Kh3 {[%clk 0:01:02]}  Kg6 {[%clk 0:00:44]} 56. Kh4 {[%clk 0:01:03]}  Kh7 {[%clk 0:00:44]} 57. Kg3 {[%clk 0:01:03]}  Kg6 {[%clk 0:00:44]} 58. Kh4 {[%clk 0:00:54]}  Kh7 {[%clk 0:00:43]} 59. Kh5 {[%clk 0:00:53]}  Kg7 {[%clk 0:00:44]} 60. Kh4 {[%clk 0:00:44]}  Kg6 {[%clk 0:00:43]} 61. Kg3 {[%clk 0:00:44]}  Kg7 {[%clk 0:00:44]} 62. Kh4 {[%clk 0:00:44]}  Kg6 {[%clk 0:00:44]} 1/2-1/2


[Site "https://www.chess.com"]

[Event "Titled Tuesday Blitz January 03 Late 2023"]
[White "Manukyan, Sargis A."]
[Black "Mosadeghpour, Masoud"]
[WhiteFideId "13303970"]
[BlackFideId "12519278"]
[WhiteElo "2158"]
[BlackElo "2472"]
[Result "0-1"]
[Round "02"]
[TimeControl "180+2"]
[Date "2023.01.03"]
[WhiteClock "0:00:20"]
[BlackClock "0:01:45"]

1. d4 {[%clk 0:03:00]}  Nf6 {[%clk 0:02:55]} 2. c4 {[%clk 0:03:01]}  e6 {[%clk 0:02:55]} 3. Nc3 {[%clk 0:03:01]}  d5 {[%clk 0:02:54]} 4. Nf3 {[%clk 0:03:01]}  Bb4 {[%clk 0:02:49]} 5. Bg5 {[%clk 0:03:01]}  h6 {[%clk 0:02:49]} 6. Bh4 {[%clk 0:03:01]}  g5 {[%clk 0:02:47]} 7. Bg3 {[%clk 0:03:01]}  Ne4 {[%clk 0:02:48]} 8. Qc2 {[%clk 0:03:00]}  h5 {[%clk 0:02:47]} 9. cxd5 {[%clk 0:02:54]}  exd5 {[%clk 0:02:47]} 10. Nd2 {[%clk 0:02:42]}  Nxd2 {[%clk 0:02:43]} 11. Qxd2 {[%clk 0:02:43]}  h4 {[%clk 0:02:43]} 12. Be5 {[%clk 0:02:34]}  f6 {[%clk 0:02:43]} 13. e4 {[%clk 0:01:50]}  fxe5 {[%clk 0:02:39]} 14. exd5 {[%clk 0:01:44]}  Qf6 {[%clk 0:02:39]} 15. Bb5+ {[%clk 0:01:41]}  Bd7 {[%clk 0:02:35]} 16. dxe5 {[%clk 0:01:34]}  Qxe5+ {[%clk 0:02:31]} 17. Kd1 {[%clk 0:01:34]}  O-O {[%clk 0:02:26]} 18. Re1 {[%clk 0:01:31]}  Qf4 {[%clk 0:02:24]} 19. Qd3 {[%clk 0:01:07]}  Bf5 {[%clk 0:02:18]} 20. Qc4 {[%clk 0:00:49]}  Qxc4 {[%clk 0:02:06]} 21. Bxc4 {[%clk 0:00:49]}  Kg7 {[%clk 0:02:01]} 22. f3 {[%clk 0:00:37]}  Nd7 {[%clk 0:02:00]} 23. a3 {[%clk 0:00:36]}  Bxc3 {[%clk 0:01:59]} 24. bxc3 {[%clk 0:00:35]}  Nb6 {[%clk 0:01:59]} 25. Bb3 {[%clk 0:00:32]}  Bd3 {[%clk 0:01:58]} 26. Re7+ {[%clk 0:00:30]}  Rf7 {[%clk 0:01:58]} 27. Rxf7+ {[%clk 0:00:30]}  Kxf7 {[%clk 0:01:58]} 28. d6+ {[%clk 0:00:31]}  Bc4 {[%clk 0:01:56]} 29. Bxc4+ {[%clk 0:00:31]}  Nxc4 {[%clk 0:01:56]} 30. dxc7 {[%clk 0:00:32]}  Rc8 {[%clk 0:01:55]} 31. Kc2 {[%clk 0:00:31]}  Ne3+ {[%clk 0:01:54]} 32. Kb3 {[%clk 0:00:27]}  Rxc7 {[%clk 0:01:53]} 33. g3 {[%clk 0:00:26]}  hxg3 {[%clk 0:01:47]} 34. hxg3 {[%clk 0:00:27]}  Rd7 {[%clk 0:01:47]} 35. f4 {[%clk 0:00:26]}  g4 {[%clk 0:01:46]} 36. Rh1 {[%clk 0:00:24]}  Kg6 {[%clk 0:01:46]} 37. Rh8 {[%clk 0:00:23]}  Nf5 {[%clk 0:01:46]} 38. Rg8+ {[%clk 0:00:23]}  Rg7 {[%clk 0:01:47]} 39. Rd8 {[%clk 0:00:18]}  Nxg3 {[%clk 0:01:46]} 40. Rd6+ {[%clk 0:00:19]}  Kf5 {[%clk 0:01:46]} 41. a4 {[%clk 0:00:19]}  Kxf4 {[%clk 0:01:46]} 42. a5 {[%clk 0:00:19]}  Nf5 {[%clk 0:01:46]} 43. a6 {[%clk 0:00:20]}  Nxd6 {[%clk 0:01:45]} 0-1


[Site "https://www.chess.com"]

[Event "Titled Tuesday Blitz January 03 Late 2023"]
[White "Omelja, Artem"]
[Black "Sanal, Vahap"]
[WhiteFideId "14119846"]
[BlackFideId "6300545"]
[WhiteElo "2446"]
[BlackElo "2600"]
[Result "1-0"]
[Round "02"]
[TimeControl "180+2"]
[Date "2023.01.03"]
[WhiteClock "0:00:04"]
[BlackClock "0:01:09"]

1. d4 {[%clk 0:03:00]}  d6 {[%clk 0:02:57]} 2. c4 {[%clk 0:02:58]}  e5 {[%clk 0:02:57]} 3. Nf3 {[%clk 0:02:51]}  e4 {[%clk 0:02:57]} 4. Nfd2 {[%clk 0:02:51]}  f5 {[%clk 0:02:57]} 5. Nc3 {[%clk 0:02:51]}  Nf6 {[%clk 0:02:58]} 6. e3 {[%clk 0:02:50]}  c5 {[%clk 0:02:55]} 7. Nb3 {[%clk 0:02:47]}  b6 {[%clk 0:02:54]} 8. Be2 {[%clk 0:02:46]}  Be7 {[%clk 0:02:53]} 9. O-O {[%clk 0:02:47]}  O-O {[%clk 0:02:53]} 10. f3 {[%clk 0:02:46]}  Nc6 {[%clk 0:02:47]} 11. fxe4 {[%clk 0:02:39]}  fxe4 {[%clk 0:02:47]} 12. d5 {[%clk 0:02:36]}  Ne5 {[%clk 0:02:41]} 13. Nd2 {[%clk 0:02:35]}  Nd3 {[%clk 0:02:17]} 14. Ndxe4 {[%clk 0:02:17]}  Nxc1 {[%clk 0:02:17]} 15. Rxc1 {[%clk 0:02:17]}  Nxe4 {[%clk 0:02:15]} 16. Nxe4 {[%clk 0:02:16]}  Bd7 {[%clk 0:02:15]} 17. Bd3 {[%clk 0:02:08]}  Bf6 {[%clk 0:01:56]} 18. Nxf6+ {[%clk 0:01:56]}  Rxf6 {[%clk 0:01:56]} 19. Qh5 {[%clk 0:01:48]}  h6 {[%clk 0:01:51]} 20. Rxf6 {[%clk 0:01:39]}  Qxf6 {[%clk 0:01:51]} 21. Rf1 {[%clk 0:01:40]}  Be8 {[%clk 0:01:09]} 22. Rxf6 {[%clk 0:01:04]}  Bxh5 {[%clk 0:01:09]} 23. Rxd6 {[%clk 0:01:04]}  Re8 {[%clk 0:01:10]} 24. Kf2 {[%clk 0:00:50]}  Rf8+ {[%clk 0:01:10]} 25. Ke1 {[%clk 0:00:38]}  Re8 {[%clk 0:01:10]} 26. e4 {[%clk 0:00:23]}  Kf7 {[%clk 0:01:10]} 27. Rd7+ {[%clk 0:00:21]}  Kf6 {[%clk 0:01:10]} 28. Rxa7 {[%clk 0:00:20]}  Ke5 {[%clk 0:01:09]} 29. Rxg7 {[%clk 0:00:19]}  Kd4 {[%clk 0:01:10]} 30. Rg3 {[%clk 0:00:16]}  Ra8 {[%clk 0:01:08]} 31. a3 {[%clk 0:00:16]}  Rf8 {[%clk 0:01:06]} 32. Be2 {[%clk 0:00:14]}  Be8 {[%clk 0:01:05]} 33. Rb3 {[%clk 0:00:09]}  Rf6 {[%clk 0:01:05]} 34. e5 {[%clk 0:00:08]}  Kxe5 {[%clk 0:01:05]} 35. Re3+ {[%clk 0:00:08]}  Kd4 {[%clk 0:01:06]} 36. Rxe8 {[%clk 0:00:06]}  Rg6 {[%clk 0:01:06]} 37. Bf3 {[%clk 0:00:04]}  b5 {[%clk 0:01:07]} 38. Re4+ {[%clk 0:00:04]}  Kd3 {[%clk 0:01:07]} 39. cxb5 {[%clk 0:00:05]}  c4 {[%clk 0:01:08]} 40. Re6 {[%clk 0:00:04]}  Rg5 {[%clk 0:01:07]} 41. Be2+ {[%clk 0:00:04]}  Kd4 {[%clk 0:01:07]} 42. d6 {[%clk 0:00:05]}  Rd5 {[%clk 0:01:06]} 43. Rxh6 {[%clk 0:00:04]}  Kc5 {[%clk 0:01:06]} 44. Rh5 {[%clk 0:00:05]}  Kxd6 {[%clk 0:01:05]} 45. Rxd5+ {[%clk 0:00:04]}  Kxd5 {[%clk 0:01:06]} 46. b6 {[%clk 0:00:05]}  c3 {[%clk 0:01:07]} 47. bxc3 {[%clk 0:00:06]}  Ke4 {[%clk 0:01:07]} 48. b7 {[%clk 0:00:06]}  Ke3 {[%clk 0:01:08]} 49. b8=Q {[%clk 0:00:06]}  Ke4 {[%clk 0:01:09]} 50. Qe8+ {[%clk 0:00:05]}  Kf4 {[%clk 0:01:09]} 51. Qe6 {[%clk 0:00:04]}  Kg5 {[%clk 0:01:09]} 52. Qe5+ {[%clk 0:00:05]}  Kh4 {[%clk 0:01:09]} 53. Qh5# {[%clk 0:00:04]} 1-0


[Site "https://www.chess.com"]

[Event "Titled Tuesday Blitz January 03 Late 2023"]
[White "Vasquez Schroeder, Rodrigo"]
[Black "Ehlvest, Jaan"]
[WhiteFideId "3400042"]
[BlackFideId "4500016"]
[WhiteElo "2524"]
[BlackElo "2530"]
[Result "0-1"]
[Round "02"]
[TimeControl "180+2"]
[Date "2023.01.03"]
[WhiteClock "0:00:18"]
[BlackClock "0:00:10"]

1. e4 {[%clk 0:03:00]}  e6 {[%clk 0:02:47]} 2. d4 {[%clk 0:03:00]}  d5 {[%clk 0:02:47]} 3. Nc3 {[%clk 0:03:00]}  Bb4 {[%clk 0:02:46]} 4. e5 {[%clk 0:03:01]}  b6 {[%clk 0:02:46]} 5. Bd2 {[%clk 0:02:59]}  Ne7 {[%clk 0:02:42]} 6. Nf3 {[%clk 0:02:56]}  Qd7 {[%clk 0:02:38]} 7. Bb5 {[%clk 0:02:55]}  c6 {[%clk 0:02:37]} 8. Ba4 {[%clk 0:02:56]}  Ba6 {[%clk 0:02:31]} 9. Ne2 {[%clk 0:02:56]}  Bxd2+ {[%clk 0:02:29]} 10. Qxd2 {[%clk 0:02:56]}  O-O {[%clk 0:02:27]} 11. O-O {[%clk 0:02:55]}  Qc7 {[%clk 0:02:27]} 12. Rfe1 {[%clk 0:02:54]}  c5 {[%clk 0:02:27]} 13. c3 {[%clk 0:02:55]}  Bxe2 {[%clk 0:02:21]} 14. Rxe2 {[%clk 0:02:53]}  Nbc6 {[%clk 0:02:18]} 15. Bc2 {[%clk 0:02:52]}  Rac8 {[%clk 0:02:15]} 16. Rc1 {[%clk 0:02:50]}  h6 {[%clk 0:02:02]} 17. Ree1 {[%clk 0:02:47]}  Rfd8 {[%clk 0:01:59]} 18. h4 {[%clk 0:02:44]}  Ng6 {[%clk 0:01:52]} 19. g3 {[%clk 0:02:34]}  Qe7 {[%clk 0:01:44]} 20. a3 {[%clk 0:02:18]}  a5 {[%clk 0:01:41]} 21. h5 {[%clk 0:02:13]}  Nf8 {[%clk 0:01:40]} 22. Ba4 {[%clk 0:02:13]}  Rc7 {[%clk 0:01:37]} 23. Kg2 {[%clk 0:02:00]}  Rb8 {[%clk 0:01:35]} 24. Qe2 {[%clk 0:01:55]}  Rbc8 {[%clk 0:01:29]} 25. Rcd1 {[%clk 0:01:53]}  cxd4 {[%clk 0:01:25]} 26. cxd4 {[%clk 0:01:53]}  Na7 {[%clk 0:01:23]} 27. Rd2 {[%clk 0:01:51]}  Rc4 {[%clk 0:01:21]} 28. Bb3 {[%clk 0:01:51]}  R4c7 {[%clk 0:01:20]} 29. Bc2 {[%clk 0:01:50]}  b5 {[%clk 0:01:19]} 30. Bd3 {[%clk 0:01:41]}  b4 {[%clk 0:01:16]} 31. a4 {[%clk 0:01:42]}  b3 {[%clk 0:01:15]} 32. Ra1 {[%clk 0:01:36]}  Qb4 {[%clk 0:01:15]} 33. Rdd1 {[%clk 0:01:28]}  Nc6 {[%clk 0:01:11]} 34. Ra3 {[%clk 0:01:25]}  Ne7 {[%clk 0:01:06]} 35. Qd2 {[%clk 0:01:21]}  Qb6 {[%clk 0:00:58]} 36. Bb5 {[%clk 0:01:21]}  Rc2 {[%clk 0:00:56]} 37. Qe3 {[%clk 0:01:21]}  Nf5 {[%clk 0:00:53]} 38. Qxb3 {[%clk 0:01:17]}  Nh7 {[%clk 0:00:50]} 39. g4 {[%clk 0:01:14]}  Ne7 {[%clk 0:00:43]} 40. Raa1 {[%clk 0:01:06]}  Ng5 {[%clk 0:00:41]} 41. Ne1 {[%clk 0:00:54]}  R2c7 {[%clk 0:00:34]} 42. Qe3 {[%clk 0:00:54]}  Nc6 {[%clk 0:00:26]} 43. Rac1 {[%clk 0:00:47]}  Nb4 {[%clk 0:00:25]} 44. Nd3 {[%clk 0:00:33]}  Nc2 {[%clk 0:00:21]} 45. Qf4 {[%clk 0:00:32]}  Qxd4 {[%clk 0:00:20]} 46. Qxd4 {[%clk 0:00:23]}  Nxd4 {[%clk 0:00:21]} 47. Ba6 {[%clk 0:00:18]}  Rxc1 {[%clk 0:00:19]} 48. Rxc1 {[%clk 0:00:19]}  Rxc1 {[%clk 0:00:16]} 49. Nxc1 {[%clk 0:00:20]}  Ne4 {[%clk 0:00:15]} 50. Nd3 {[%clk 0:00:20]}  Nc2 {[%clk 0:00:13]} 51. Kf3 {[%clk 0:00:18]}  Kf8 {[%clk 0:00:12]} 52. Ke2 {[%clk 0:00:18]}  Ke7 {[%clk 0:00:12]} 53. f3 {[%clk 0:00:19]}  Ng5 {[%clk 0:00:10]} 54. Kd2 {[%clk 0:00:20]}  Nd4 {[%clk 0:00:09]} 55. f4 {[%clk 0:00:19]}  Ne4+ {[%clk 0:00:09]} 56. Ke3 {[%clk 0:00:20]}  Nc2+ {[%clk 0:00:09]} 57. Ke2 {[%clk 0:00:20]}  Kd7 {[%clk 0:00:09]} 58. Kf3 {[%clk 0:00:20]}  Nd4+ {[%clk 0:00:08]} 59. Ke3 {[%clk 0:00:20]}  Nc2+ {[%clk 0:00:09]} 60. Ke2 {[%clk 0:00:20]}  Nd4+ {[%clk 0:00:09]} 61. Kd1 {[%clk 0:00:21]}  Kc7 {[%clk 0:00:08]} 62. b4 {[%clk 0:00:19]}  Kb6 {[%clk 0:00:07]} 63. b5 {[%clk 0:00:19]}  Nc3+ {[%clk 0:00:07]} 64. Kd2 {[%clk 0:00:19]}  Nxa4 {[%clk 0:00:08]} 65. Ke3 {[%clk 0:00:19]}  Nb3 {[%clk 0:00:07]} 66. Bc8 {[%clk 0:00:19]}  Nbc5 {[%clk 0:00:07]} 67. Nxc5 {[%clk 0:00:18]}  Nxc5 {[%clk 0:00:08]} 68. Kd4 {[%clk 0:00:18]}  a4 {[%clk 0:00:09]} 69. Kc3 {[%clk 0:00:18]}  Kxb5 {[%clk 0:00:09]} 70. f5 {[%clk 0:00:18]}  Kb6 {[%clk 0:00:09]} 71. f6 {[%clk 0:00:18]}  gxf6 {[%clk 0:00:08]} 72. exf6 {[%clk 0:00:18]}  Ne4+ {[%clk 0:00:09]} 73. Kb4 {[%clk 0:00:19]}  Nxf6 {[%clk 0:00:10]} 74. g5 {[%clk 0:00:19]}  hxg5 {[%clk 0:00:10]} 75. h6 {[%clk 0:00:19]}  g4 {[%clk 0:00:10]} 76. Kxa4 {[%clk 0:00:17]}  g3 {[%clk 0:00:10]} 77. Kb4 {[%clk 0:00:18]}  g2 {[%clk 0:00:10]} 0-1


[Site "https://www.chess.com"]

[Event "Titled Tuesday Blitz January 03 Late 2023"]
[White "Krishnan, Varun"]
[Black "Mardov, Dimitar"]
[WhiteFideId "5054508"]
[BlackFideId "30919495"]
[WhiteElo "2341"]
[BlackElo "2456"]
[Result "0-1"]
[Round "02"]
[TimeControl "180+2"]
[Date "2023.01.03"]
[WhiteClock "0:00:00"]
[BlackClock "0:00:09"]

1. d4 {[%clk 0:03:00]}  Nf6 {[%clk 0:03:00]} 2. c4 {[%clk 0:02:59]}  e6 {[%clk 0:03:00]} 3. g3 {[%clk 0:02:54]}  d5 {[%clk 0:03:00]} 4. Bg2 {[%clk 0:02:52]}  dxc4 {[%clk 0:02:59]} 5. Nf3 {[%clk 0:02:52]}  Nc6 {[%clk 0:02:58]} 6. O-O {[%clk 0:02:50]}  Rb8 {[%clk 0:02:59]} 7. a4 {[%clk 0:02:48]}  a6 {[%clk 0:02:56]} 8. Qc2 {[%clk 0:02:29]}  b5 {[%clk 0:02:52]} 9. axb5 {[%clk 0:02:28]}  axb5 {[%clk 0:02:53]} 10. b3 {[%clk 0:02:28]}  Nb4 {[%clk 0:02:14]} 11. Qb2 {[%clk 0:02:22]}  Bb7 {[%clk 0:02:07]} 12. Nbd2 {[%clk 0:02:15]}  Be7 {[%clk 0:01:59]} 13. bxc4 {[%clk 0:02:09]}  bxc4 {[%clk 0:01:59]} 14. Nxc4 {[%clk 0:02:09]}  O-O {[%clk 0:01:53]} 15. Nce5 {[%clk 0:01:53]}  c5 {[%clk 0:01:27]} 16. dxc5 {[%clk 0:01:29]}  Bxc5 {[%clk 0:01:28]} 17. Qc3 {[%clk 0:01:21]}  Ne4 {[%clk 0:01:25]} 18. Qb3 {[%clk 0:01:07]}  Bd5 {[%clk 0:01:23]} 19. Qd1 {[%clk 0:00:43]}  Qb6 {[%clk 0:01:13]} 20. Nd7 {[%clk 0:00:30]}  Nxf2 {[%clk 0:00:52]} 21. Qa4 {[%clk 0:00:18]}  Ne4+ {[%clk 0:00:42]} 22. Kh1 {[%clk 0:00:17]}  Qb7 {[%clk 0:00:35]} 23. Nxb8 {[%clk 0:00:15]}  Rxb8 {[%clk 0:00:33]} 24. Bf4 {[%clk 0:00:11]}  Rf8 {[%clk 0:00:32]} 25. e3 {[%clk 0:00:07]}  Qe7 {[%clk 0:00:27]} 26. Rac1 {[%clk 0:00:04]}  Nd3 {[%clk 0:00:26]} 27. Rc2 {[%clk 0:00:01]}  h6 {[%clk 0:00:18]} 28. Qa1 {[%clk 0:00:02]}  Ra8 {[%clk 0:00:16]} 29. Qb1 {[%clk 0:00:02]}  Nb4 {[%clk 0:00:15]} 30. Rb2 {[%clk 0:00:01]}  Nc3 {[%clk 0:00:15]} 31. Qc1 {[%clk 0:00:00]}  Ne4 {[%clk 0:00:09]} 0-1


[Site "https://www.chess.com"]